[Event "2nd Cambridge Open 2024"]
[Site "Cambridge"]
[Date "2024.02.22"]
[Round "6.24"]
[White "Underwood, Jon"]
[Black "McClement, Andrew"]
[Result "1/2-1/2"]
[ECO "A18"]
[WhiteElo "1993"]
[BlackElo "2223"]
[Annotator "RC"]
[PlyCount "62"]
[EventDate "2024.02.18"]
[EventType "swiss"]
[EventCountry "ENG"]
[SourceTitle "playchess.com"]
[Source "ChessBase"]
[SourceQuality "1"]
[TimeControl "5400+30"]

1. c4 {[%emt 0:00:21]} Nf6 {[%emt 0:00:05]} 2. Nc3 {[%emt 0:00:08]} e6 {[%emt 0:00:03]} 3. e4 {[%emt 0:00:04]} d5 {[%emt 0:00:03]} 4. e5 {[%emt 0:00:15]} d4 {[%emt 0:00:03]} 5. exf6 {[%emt 0:00:06]} dxc3 {[%emt 0:00:04]} 6. bxc3 {[%emt 0:00:07]} Qxf6 {[%emt 0:00:04]} 7. d4 {[%emt 0:00:19]} c5 {[%emt 0:00:04]} 8. Nf3 {[%emt 0:00:22]} cxd4 {[%emt 0:00:21]} 9. Bg5 {[%emt 0:00:29]} Qf5 {[%emt 0:00:02]} 10. cxd4 {[%emt 0:00:20]} Bb4+ {[%emt 0:00:08]} 11. Bd2 {[%emt 0:00:13]} Nc6 {[%emt 0:00:07]} 12. Bxb4 {[%emt 0:00:51]} Nxb4 {[%emt 0:02:50]} 13. Rb1 {[%emt 0:00:09]} Qa5 {[%emt 0:03:02]} 14. Qd2 {[%emt 0:00:57]} Nc6 {[%emt 0:00:02]} 15. Bd3 {[%emt 0:00:43]} Rb8 {[%emt 0:00:21]} 16. Be4 {[%emt 0:00:57]} Bd7 {[%emt 0:00:08]} 17. d5 {[%emt 0:06:40]} Qxd2+ {[%emt 0:01:26]} 18. Kxd2 {[%emt 0:00:03]} Na5 {[%emt 0:01:55]} 19. Ne5 {[%emt 0:03:10]} Rc8 {[%emt 0:04:13]} 20. Rhc1 {[%emt 0:17:06]} b6 {[%emt 0:18:03]} 21. Kd3 {[%emt 0:03:15]} Rc5 {[%emt 0:14:39]} 22. Kd4 {[%emt 0:17:25]} f6 {[%emt 0:05:09]} 23. Nxd7 {[%emt 0:01:00]} Kxd7 {[%emt 0:00:02]} 24. dxe6+ {[%emt 0:00:17]} Kxe6 {[%emt 0:00:02]} 25. Bd5+ {[%emt 0:00:14]} Kd7 {[%emt 0:00:41]} 26. Rb5 {[%emt 0:10:53]} Rhc8 {[%emt 0:05:09]} 27. Rxc5 {[%emt 0:00:22]} Rxc5 {[%emt 0:00:16]} 28. Rc3 {[%emt 0:05:06]} Nc6+ {[%emt 0:03:04]} 29. Bxc6+ {[%emt 0:00:10]} Kxc6 {[%emt 0:00:15]} 30. Ra3 {[%emt 0:06:16]} a5 {[%emt 0:00:18]} 31. Re3 {[%emt 0:08:42]} Kd7 {[%emt 0:15:54]} 1/2-1/2

[Event "2nd Cambridge Open 2024"]
[Site "Cambridge"]
[Date "2024.02.22"]
[Round "6.25"]
[White "Karamsetty, Jeevan"]
[Black "Blauhut, Holger"]
[Result "1/2-1/2"]
[ECO "C47"]
[WhiteElo "2211"]
[BlackElo "2016"]
[Annotator "RC"]
[PlyCount "112"]
[EventDate "2024.02.18"]
[EventType "swiss"]
[EventCountry "ENG"]
[SourceTitle "playchess.com"]
[Source "ChessBase"]
[SourceQuality "1"]
[TimeControl "5400+30"]

1. e4 {[%emt 0:00:04]} e5 {[%emt 0:00:07]} 2. Nc3 {[%emt 0:00:06]} Nf6 {[%emt 0:00:08]} 3. g3 {[%emt 0:00:06]} d5 {[%emt 0:00:57]} 4. exd5 {[%emt 0:00:07]} Nxd5 {[%emt 0:00:06]} 5. Bg2 {[%emt 0:00:09]} Nxc3 {[%emt 0:00:21]} 6. bxc3 {[%emt 0:00:07]} Bd6 {[%emt 0:00:29]} 7. Nf3 {[%emt 0:00:17]} O-O {[%emt 0:00:18]} 8. O-O {[%emt 0:00:07]} Nc6 {[%emt 0:01:40]} 9. Rb1 {[%emt 0:00:11]} Rb8 {[%emt 0:00:38]} 10. d4 {[%emt 0:00:32]} exd4 {[%emt 0:03:15]} 11. cxd4 {[%emt 0:00:08]} h6 {[%emt 0:00:55]} 12. Be3 {[%emt 0:05:44]} Bg4 {[%emt 0:10:15]} 13. h3 {[%emt 0:03:06]} Bh5 {[%emt 0:00:50]} 14. Rb5 {[%emt 0:00:23]} Bg6 {[%emt 0:08:44]} 15. Nh4 {[%emt 0:05:02]} a6 {[%emt 0:08:48]} 16. Nxg6 {[%emt 0:25:31]} axb5 {[%emt 0:00:45]} 17. Nxf8 {[%emt 0:01:00]} Bxf8 {[%emt 0:04:00]} 18. c3 {[%emt 0:05:24]} Qd7 {[%emt 0:05:12]} 19. Qh5 {[%emt 0:04:41]} Na5 {[%emt 0:02:48]} 20. a4 {[%emt 0:01:46]} Nc4 {[%emt 0:13:15]} 21. axb5 {[%emt 0:01:29]} Nxe3 {[%emt 0:01:27]} 22. fxe3 {[%emt 0:00:13]} c6 {[%emt 0:00:25]} 23. Rb1 {[%emt 0:07:00]} Ra8 {[%emt 0:09:04]} 24. Qf3 {[%emt 0:05:44]} cxb5 {[%emt 0:04:48]} 25. Qxb7 {[%emt 0:06:33]} Qxb7 {[%emt 0:00:12]} 26. Bxb7 {[%emt 0:00:05]} Ra3 {[%emt 0:00:07]} 27. Rxb5 {[%emt 0:01:53]} Rxc3 {[%emt 0:00:07]} 28. Kf2 {[%emt 0:01:56]} g6 {[%emt 0:01:54]} 29. Bd5 {[%emt 0:00:19]} Be7 {[%emt 0:01:26]} 30. Rb1 {[%emt 0:05:59]} h5 {[%emt 0:03:17]} 31. Kf3 {[%emt 0:02:18]} Bg5 {[%emt 0:02:30]} 32. Rb8+ {[%emt 0:01:26]} Kg7 {[%emt 0:00:09]} 33. Re8 {[%emt 0:00:07]} Rc7 {[%emt 0:00:35]} 34. Re5 {[%emt 0:04:48]} Bf6 {[%emt 0:00:32]} 35. Re8 {[%emt 0:00:42]} Bg5 {[%emt 0:00:05]} 36. Bb3 {[%emt 0:05:32]} Rb7 {[%emt 0:04:12]} 37. Ba4 {[%emt 0:01:07]} Re7 {[%emt 0:02:40]} 38. Rxe7 {[%emt 0:01:15]} Bxe7 {[%emt 0:00:02]} 39. Ke4 {[%emt 0:00:17]} Bg5 {[%emt 0:01:35]} 40. d5 {[%emt 0:00:19]} h4 {[%emt 0:01:57]} 41. g4 {[%emt 0:00:21]} f5+ {[%emt 0:00:54]} 42. gxf5 {[%emt 0:03:12]} gxf5+ {[%emt 0:00:05]} 43. Kd4 {[%emt 0:01:03]} Bf6+ {[%emt 0:01:17]} 44. Kc5 {[%emt 0:00:49]} Bg5 {[%emt 0:00:14]} 45. Kd4 {[%emt 0:00:12]} Bf6+ {[%emt 0:00:06]} 46. Kd3 {[%emt 0:00:04]} Be5 {[%emt 0:00:29]} 47. Bd7 {[%emt 0:00:23]} Kf6 {[%emt 0:01:22]} 48. Bc8 {[%emt 0:00:32]} Bb8 {[%emt 0:00:34]} 49. Ke2 {[%emt 0:00:50]} Ke5 {[%emt 0:00:23]} 50. Kf3 {[%emt 0:01:55]} Ba7 {[%emt 0:00:40]} 51. Be6 {[%emt 0:01:22]} Bc5 {[%emt 0:00:12]} 52. Bg8 {[%emt 0:00:11]} Ba7 {[%emt 0:00:27]} 53. Bh7 {[%emt 0:00:18]} Kxd5 {[%emt 0:00:34]} 54. Bxf5 {[%emt 0:00:08]} Bxe3 {[%emt 0:00:42]} 55. Kxe3 {[%emt 0:00:05]} Ke5 {[%emt 0:00:04]} 56. Bc8 {[%emt 0:00:12]} Kf6 {[%emt 0:00:04]} 1/2-1/2

[Event "2nd Cambridge Open 2024"]
[Site "Cambridge"]
[Date "2024.02.22"]
[Round "6.26"]
[White "Volovich, Julia"]
[Black "Sowray, Peter J"]
[Result "0-1"]
[ECO "D35"]
[WhiteElo "1983"]
[BlackElo "2169"]
[Annotator "RC"]
[PlyCount "102"]
[EventDate "2024.02.18"]
[EventType "swiss"]
[EventCountry "ENG"]
[SourceTitle "playchess.com"]
[Source "ChessBase"]
[SourceQuality "1"]
[TimeControl "5400+30"]

1. d4 {[%emt 0:02:42]} d5 {[%emt 0:00:08]} 2. c4 {[%emt 0:00:10]} e6 {[%emt 0:00:07]} 3. Nc3 {[%emt 0:00:13]} Nf6 {[%emt 0:00:08]} 4. cxd5 {[%emt 0:00:13]} exd5 {[%emt 0:00:19]} 5. Bg5 {[%emt 0:00:07]} c6 {[%emt 0:00:40]} 6. e3 {[%emt 0:00:10]} Be7 {[%emt 0:00:26]} 7. Bd3 {[%emt 0:00:18]} Nbd7 {[%emt 0:00:17]} 8. h3 {[%emt 0:00:40]} h6 {[%emt 0:03:27]} 9. Bf4 {[%emt 0:00:45]} Nb6 {[%emt 0:01:31]} 10. Qc2 {[%emt 0:07:24]} Be6 {[%emt 0:05:55]} 11. Nf3 {[%emt 0:10:30]} Bd6 {[%emt 0:06:23]} 12. Bxd6 {[%emt 0:00:47]} Qxd6 {[%emt 0:00:03]} 13. O-O {[%emt 0:01:19]} O-O {[%emt 0:06:13]} 14. Rab1 {[%emt 0:09:08]} Qe7 {[%emt 0:06:41]} 15. Ne5 {[%emt 0:05:56]} Nfd7 {[%emt 0:02:56]} 16. Nxd7 {[%emt 0:01:47]} Bxd7 {[%emt 0:01:27]} 17. Ne2 {[%emt 0:17:39]} Nc8 {[%emt 0:02:41]} 18. b4 {[%emt 0:00:54]} Nd6 {[%emt 0:01:07]} 19. a4 {[%emt 0:02:19]} a6 {[%emt 0:03:47]} 20. a5 {[%emt 0:05:15]} Rae8 {[%emt 0:05:24]} 21. Nc3 {[%emt 0:10:55]} f5 {[%emt 0:07:48]} 22. Rbe1 {[%emt 0:04:32]} Qf6 {[%emt 0:02:00]} 23. f4 {[%emt 0:04:15]} Re7 {[%emt 0:05:00]} 24. Qf2 {[%emt 0:01:14]} Be8 {[%emt 0:02:32]} 25. Kh2 {[%emt 0:01:02]} Bg6 {[%emt 0:01:51]} 26. Rg1 {[%emt 0:01:05]} Rfe8 {[%emt 0:00:46]} 27. Nd1 {[%emt 0:01:04]} Re6 {[%emt 0:01:23]} 28. Ref1 {[%emt 0:02:15]} Qe7 {[%emt 0:02:18]} 29. g4 {[%emt 0:00:47]} Ne4 {[%emt 0:01:31]} 30. Bxe4 {[%emt 0:00:30]} Rxe4 {[%emt 0:00:03]} 31. g5 {[%emt 0:02:31]} h5 {[%emt 0:03:01]} 32. Qe1 {[%emt 0:04:10]} h4 {[%emt 0:01:40]} 33. Qxh4 {[%emt 0:00:07]} Qxb4 {[%emt 0:00:26]} 34. Qg3 {[%emt 0:02:34]} Qxa5 {[%emt 0:03:27]} 35. Qf3 {[%emt 0:00:09]} Kf7 {[%emt 0:01:41]} 36. Rf2 {[%emt 0:01:46]} Qc7 {[%emt 0:01:54]} 37. Rb2 {[%emt 0:00:28]} Qe7 {[%emt 0:01:29]} 38. Rgg2 {[%emt 0:00:33]} Rh8 {[%emt 0:00:56]} 39. Qg3 {[%emt 0:00:08]} Bh5 {[%emt 0:02:21]} 40. g6+ {[%emt 0:00:35]} Ke8 {[%emt 0:00:59]} 41. Qg5 {[%emt 0:00:43]} Bxd1 {[%emt 0:02:12]} 42. Qxf5 {[%emt 0:00:33]} Rxe3 {[%emt 0:03:35]} 43. Qc8+ {[%emt 0:00:10]} Qd8 {[%emt 0:00:05]} 44. Qxd8+ {[%emt 0:00:56]} Kxd8 {[%emt 0:00:02]} 45. Rxb7 {[%emt 0:00:07]} Rhxh3+ {[%emt 0:00:49]} 46. Kg1 {[%emt 0:00:02]} Re1+ {[%emt 0:01:34]} 47. Kf2 {[%emt 0:00:04]} Re7 {[%emt 0:00:09]} 48. Rb6 {[%emt 0:00:48]} Kc7 {[%emt 0:00:57]} 49. Rxa6 {[%emt 0:00:05]} Rf3+ {[%emt 0:00:48]} 50. Kg1 {[%emt 0:00:03]} Rxf4 {[%emt 0:00:22]} 51. Rd2 {[%emt 0:00:26]} Bh5 {[%emt 0:01:42]} 0-1

[Event "2nd Cambridge Open 2024"]
[Site "Cambridge"]
[Date "2024.02.22"]
[Round "6.27"]
[White "Abhyuday, Santhosh"]
[Black "Kovalskyi, Roman"]
[Result "1/2-1/2"]
[ECO "B38"]
[WhiteElo "2058"]
[BlackElo "2009"]
[Annotator "RC"]
[PlyCount "132"]
[EventDate "2024.02.18"]
[EventType "swiss"]
[EventCountry "ENG"]
[SourceTitle "playchess.com"]
[Source "ChessBase"]
[SourceQuality "1"]
[TimeControl "5400+30"]

1. e4 {[%emt 0:05:40]} c5 {[%emt 0:05:26]} 2. Nf3 {[%emt 0:00:10]} g6 {[%emt 0:00:03]} 3. d4 {[%emt 0:00:07]} cxd4 {[%emt 0:00:06]} 4. Nxd4 {[%emt 0:00:04]} Nc6 {[%emt 0:00:14]} 5. c4 {[%emt 0:00:11]} Nf6 {[%emt 0:00:05]} 6. Nc3 {[%emt 0:00:07]} d6 {[%emt 0:00:02]} 7. f3 {[%emt 0:00:12]} Bg7 {[%emt 0:00:16]} 8. Be3 {[%emt 0:00:07]} O-O {[%emt 0:00:12]} 9. Be2 {[%emt 0:00:05]} Bd7 {[%emt 0:02:09]} 10. Qd2 {[%emt 0:01:31]} a5 {[%emt 0:06:37]} 11. Ndb5 {[%emt 0:00:31]} a4 {[%emt 0:01:41]} 12. O-O {[%emt 0:00:48]} Qa5 {[%emt 0:00:51]} 13. Rac1 {[%emt 0:09:47]} Rfc8 {[%emt 0:04:02]} 14. Rfd1 {[%emt 0:08:44]} Ne5 {[%emt 0:05:38]} 15. b3 {[%emt 0:01:19]} axb3 {[%emt 0:00:08]} 16. axb3 {[%emt 0:00:09]} Bxb5 {[%emt 0:04:59]} 17. Nxb5 {[%emt 0:01:05]} Qxd2 {[%emt 0:00:08]} 18. Rxd2 {[%emt 0:00:58]} Ned7 {[%emt 0:00:08]} 19. Bd1 {[%emt 0:03:11]} Nc5 {[%emt 0:10:03]} 20. b4 {[%emt 0:05:03]} Na6 {[%emt 0:01:21]} 21. Nd4 {[%emt 0:12:47]} Nxb4 {[%emt 0:08:06]} 22. Rb1 {[%emt 0:00:36]} Rxc4 {[%emt 0:01:49]} 23. Be2 {[%emt 0:00:53]} Rc3 {[%emt 0:00:15]} 24. Kf2 {[%emt 0:01:00]} Na6 {[%emt 0:05:13]} 25. Ra2 {[%emt 0:03:51]} Rac8 {[%emt 0:08:23]} 26. Bxa6 {[%emt 0:15:12]} bxa6 {[%emt 0:00:07]} 27. Rxa6 {[%emt 0:00:10]} R3c7 {[%emt 0:07:58]} 28. Rb5 {[%emt 0:07:38]} Nd7 {[%emt 0:03:11]} 29. Rba5 {[%emt 0:02:27]} Nb8 {[%emt 0:10:52]} 30. Ra8 {[%emt 0:01:52]} Bxd4 {[%emt 0:00:43]} 31. Bxd4 {[%emt 0:00:09]} Nc6 {[%emt 0:00:06]} 32. Ra4 {[%emt 0:00:42]} Nd8 {[%emt 0:05:20]} 33. R4a7 {[%emt 0:01:54]} Ne6 {[%emt 0:00:49]} 34. Bb2 {[%emt 0:01:50]} Rc2+ {[%emt 0:03:02]} 35. Kg3 {[%emt 0:00:06]} Kf8 {[%emt 0:00:09]} 36. e5 {[%emt 0:02:34]} dxe5 {[%emt 0:02:52]} 37. Bxe5 {[%emt 0:00:08]} f6 {[%emt 0:00:16]} 38. Bb2 {[%emt 0:01:35]} Kf7 {[%emt 0:01:19]} 39. Rxc8 {[%emt 0:01:04]} Rxc8 {[%emt 0:00:02]} 40. Ba3 {[%emt 0:00:05]} Nc7 {[%emt 0:00:29]} 41. Kf4 {[%emt 0:02:27]} e5+ {[%emt 0:02:53]} 42. Kg3 {[%emt 0:01:29]} Ke6 {[%emt 0:00:09]} 43. Kf2 {[%emt 0:01:43]} h5 {[%emt 0:01:19]} 44. Rb7 {[%emt 0:01:13]} Nd5 {[%emt 0:01:08]} 45. Rb2 {[%emt 0:00:12]} Rc6 {[%emt 0:01:01]} 46. g3 {[%emt 0:01:28]} Nc3 {[%emt 0:00:41]} 47. Kg2 {[%emt 0:01:31]} Nd1 {[%emt 0:00:31]} 48. Rd2 {[%emt 0:00:54]} Ne3+ {[%emt 0:00:39]} 49. Kf2 {[%emt 0:00:13]} Nf5 {[%emt 0:00:19]} 50. Bb2 {[%emt 0:01:11]} Rb6 {[%emt 0:00:18]} 51. Ba3 {[%emt 0:02:57]} Rb3 {[%emt 0:00:11]} 52. Bc5 {[%emt 0:00:43]} Rc3 {[%emt 0:00:06]} 53. Bb6 {[%emt 0:01:33]} h4 {[%emt 0:01:16]} 54. Re2 {[%emt 0:00:44]} Rc6 {[%emt 0:00:55]} 55. Be3 {[%emt 0:00:54]} Rc3 {[%emt 0:00:49]} 56. Bb6 {[%emt 0:00:08]} Rb3 {[%emt 0:00:08]} 57. Ba7 {[%emt 0:00:29]} Rb7 {[%emt 0:00:27]} 58. Be3 {[%emt 0:00:13]} Rb1 {[%emt 0:00:05]} 59. Kg2 {[%emt 0:01:09]} Kd5 {[%emt 0:00:56]} 60. Bf2 {[%emt 0:00:22]} Rb4 {[%emt 0:00:55]} 61. Ra2 {[%emt 0:00:18]} Ke6 {[%emt 0:00:32]} 62. g4 {[%emt 0:00:46]} Nd4 {[%emt 0:00:30]} 63. Bxh4 {[%emt 0:00:52]} g5 {[%emt 0:00:25]} 64. Bf2 {[%emt 0:00:07]} Nc6 {[%emt 0:00:36]} 65. h4 {[%emt 0:00:25]} gxh4 {[%emt 0:00:13]} 66. Bxh4 {[%emt 0:00:12]} f5 {[%emt 0:00:47]} 1/2-1/2

[Event "2nd Cambridge Open 2024"]
[Site "Cambridge"]
[Date "2024.02.22"]
[Round "6.28"]
[White "Cole, James"]
[Black "Denderski, Piotr"]
[Result "0-1"]
[ECO "D05"]
[WhiteElo "1940"]
[BlackElo "2137"]
[Annotator "RC"]
[PlyCount "98"]
[EventDate "2024.02.18"]
[EventType "swiss"]
[EventCountry "ENG"]
[SourceTitle "playchess.com"]
[Source "ChessBase"]
[SourceQuality "1"]
[TimeControl "5400+30"]

1. d4 {[%emt 0:00:03]} Nf6 {[%emt 0:00:12]} 2. Nf3 {[%emt 0:00:05]} e6 {[%emt 0:00:06]} 3. e3 {[%emt 0:00:05]} d5 {[%emt 0:00:12]} 4. Bd3 {[%emt 0:00:05]} c5 {[%emt 0:00:26]} 5. b3 {[%emt 0:00:05]} a6 {[%emt 0:00:53]} 6. Bb2 {[%emt 0:00:39]} Nbd7 {[%emt 0:00:46]} 7. Nbd2 {[%emt 0:03:49]} Be7 {[%emt 0:04:57]} 8. O-O {[%emt 0:00:51]} O-O {[%emt 0:00:10]} 9. Ne5 {[%emt 0:05:16]} Qc7 {[%emt 0:03:30]} 10. f4 {[%emt 0:09:19]} b5 {[%emt 0:02:27]} 11. Nxd7 {[%emt 0:04:39]} Bxd7 {[%emt 0:03:26]} 12. dxc5 {[%emt 0:00:55]} b4 {[%emt 0:04:55]} 13. Rf3 {[%emt 0:09:20]} Bb5 {[%emt 0:03:54]} 14. Bxf6 {[%emt 0:02:41]} Bxf6 {[%emt 0:02:59]} 15. Bxh7+ {[%emt 0:05:15]} Kxh7 {[%emt 0:00:04]} 16. Rh3+ {[%emt 0:00:15]} Kg8 {[%emt 0:00:03]} 17. Qh5 {[%emt 0:00:08]} Bh4 {[%emt 0:00:05]} 18. Rxh4 {[%emt 0:04:54]} f6 {[%emt 0:00:12]} 19. Qh7+ {[%emt 0:13:07]} Kf7 {[%emt 0:00:04]} 20. Rg4 {[%emt 0:00:30]} Rg8 {[%emt 0:00:13]} 21. Nf3 {[%emt 0:01:23]} Qxc5 {[%emt 0:04:11]} 22. Re1 {[%emt 0:02:39]} Rac8 {[%emt 0:05:25]} 23. Nd4 {[%emt 0:00:58]} Qc3 {[%emt 0:00:25]} 24. Qh4 {[%emt 0:05:32]} Bd7 {[%emt 0:00:17]} 25. f5 {[%emt 0:03:02]} exf5 {[%emt 0:12:54]} 26. Rf4 {[%emt 0:01:40]} g5 {[%emt 0:04:22]} 27. Qh5+ {[%emt 0:02:57]} Kg7 {[%emt 0:00:15]} 28. Rff1 {[%emt 0:00:24]} Rce8 {[%emt 0:05:45]} 29. Qh3 {[%emt 0:02:23]} Re5 {[%emt 0:02:38]} 30. Re2 {[%emt 0:01:58]} Rh8 {[%emt 0:02:33]} 31. Qf3 {[%emt 0:01:02]} Rhe8 {[%emt 0:01:24]} 32. Rd1 {[%emt 0:07:46]} f4 {[%emt 0:06:21]} 33. Rd3 {[%emt 0:05:43]} Qa1+ {[%emt 0:00:18]} 34. Kf2 {[%emt 0:00:36]} fxe3+ {[%emt 0:00:18]} 35. Kg3 {[%emt 0:02:41]} Re4 {[%emt 0:01:00]} 36. Nf5+ {[%emt 0:01:21]} Bxf5 {[%emt 0:00:08]} 37. Qxf5 {[%emt 0:00:05]} Qe5+ {[%emt 0:00:13]} 38. Qxe5 {[%emt 0:00:04]} R8xe5 {[%emt 0:00:04]} 39. c3 {[%emt 0:00:56]} bxc3 {[%emt 0:00:17]} 40. Rxc3 {[%emt 0:00:04]} d4 {[%emt 0:00:13]} 41. Rc7+ {[%emt 0:01:06]} Re7 {[%emt 0:00:33]} 42. Rxe7+ {[%emt 0:00:19]} Rxe7 {[%emt 0:00:04]} 43. Kf3 {[%emt 0:00:24]} Rd7 {[%emt 0:01:40]} 44. Re1 {[%emt 0:00:25]} f5 {[%emt 0:00:35]} 45. g3 {[%emt 0:00:24]} Kf6 {[%emt 0:04:52]} 46. Rc1 {[%emt 0:01:04]} Ke5 {[%emt 0:00:11]} 47. Rc5+ {[%emt 0:00:09]} Rd5 {[%emt 0:00:04]} 48. Rc1 {[%emt 0:01:25]} g4+ {[%emt 0:02:15]} 49. Ke2 {[%emt 0:00:09]} Ke4 {[%emt 0:00:10]} 0-1

[Event "2nd Cambridge Open 2024"]
[Site "Cambridge"]
[Date "2024.02.22"]
[Round "6.29"]
[White "Martin, Lewis"]
[Black "Keohane, Ben"]
[Result "1-0"]
[ECO "A10"]
[WhiteElo "2144"]
[BlackElo "1926"]
[Annotator "RC"]
[PlyCount "77"]
[EventDate "2024.02.18"]
[EventType "swiss"]
[EventCountry "ENG"]
[SourceTitle "playchess.com"]
[Source "ChessBase"]
[SourceQuality "1"]
[TimeControl "5400+30"]

1. c4 {[%emt 0:00:03]} f5 {[%emt 0:02:36]} 2. g3 {[%emt 0:00:07]} Nf6 {[%emt 0:00:04]} 3. Bg2 {[%emt 0:00:07]} e6 {[%emt 0:00:01]} 4. d3 {[%emt 0:03:01]} Nc6 {[%emt 0:01:23]} 5. Nc3 {[%emt 0:01:58]} Be7 {[%emt 0:00:59]} 6. e4 {[%emt 0:00:24]} fxe4 {[%emt 0:09:08]} 7. dxe4 {[%emt 0:01:09]} O-O {[%emt 0:03:47]} 8. Nh3 {[%emt 0:07:05]} Rb8 {[%emt 0:08:05]} 9. O-O {[%emt 0:01:05]} a6 {[%emt 0:02:03]} 10. f4 {[%emt 0:03:33]} Bc5+ {[%emt 0:10:53]} 11. Kh1 {[%emt 0:00:41]} d6 {[%emt 0:01:24]} 12. a3 {[%emt 0:07:11]} a5 {[%emt 0:08:53]} 13. Qd3 {[%emt 0:03:18]} Qe8 {[%emt 0:05:58]} 14. Nf2 {[%emt 0:07:38]} Bxf2 {[%emt 0:12:41]} 15. Rxf2 {[%emt 0:00:06]} Ng4 {[%emt 0:00:01]} 16. Rf1 {[%emt 0:03:13]} e5 {[%emt 0:08:59]} 17. f5 {[%emt 0:00:35]} Qh5 {[%emt 0:08:46]} 18. h3 {[%emt 0:00:10]} g6 {[%emt 0:00:29]} 19. Kg1 {[%emt 0:01:44]} Nf6 {[%emt 0:01:52]} 20. g4 {[%emt 0:03:11]} Qh4 {[%emt 0:00:00]} 21. Be3 {[%emt 0:07:32]} gxf5 {[%emt 0:04:11]} 22. exf5 {[%emt 0:00:39]} h5 {[%emt 0:05:11]} 23. g5 {[%emt 0:08:24]} Nh7 {[%emt 0:00:01]} 24. f6 {[%emt 0:02:17]} e4 {[%emt 0:00:16]} 25. Qxe4 {[%emt 0:04:17]} Qxe4 {[%emt 0:00:13]} 26. Nxe4 {[%emt 0:00:06]} Ne5 {[%emt 0:00:33]} 27. Ng3 {[%emt 0:03:19]} h4 {[%emt 0:02:23]} 28. Nf5 {[%emt 0:03:23]} Be6 {[%emt 0:00:22]} 29. Bd5 {[%emt 0:06:47]} Bxd5 {[%emt 0:00:32]} 30. cxd5 {[%emt 0:00:09]} Ng6 {[%emt 0:00:14]} 31. Rac1 {[%emt 0:00:47]} Rbc8 {[%emt 0:00:57]} 32. f7+ {[%emt 0:00:56]} Kxf7 {[%emt 0:01:34]} 33. Nxd6+ {[%emt 0:00:12]} Kg8 {[%emt 0:00:08]} 34. Nxc8 {[%emt 0:00:11]} Rxc8 {[%emt 0:00:02]} 35. d6 {[%emt 0:00:51]} c6 {[%emt 0:00:06]} 36. Bb6 {[%emt 0:00:22]} Ne5 {[%emt 0:00:18]} 37. Rce1 {[%emt 0:01:12]} Nd7 {[%emt 0:00:24]} 38. Bxa5 {[%emt 0:00:24]} b6 {[%emt 0:00:44]} 39. Bc3 {[%emt 0:00:22]} 1-0

[Event "2nd Cambridge Open 2024"]
[Site "Cambridge"]
[Date "2024.02.22"]
[Round "6.30"]
[White "Okhai, Shabir"]
[Black "Gooding, Ian"]
[Result "1-0"]
[ECO "C18"]
[WhiteElo "2114"]
[BlackElo "1923"]
[Annotator "RC"]
[PlyCount "85"]
[EventDate "2024.02.18"]
[EventType "swiss"]
[EventCountry "ENG"]
[SourceTitle "playchess.com"]
[Source "ChessBase"]
[SourceQuality "1"]
[TimeControl "5400+30"]

1. e4 {[%emt 0:07:05]} e6 {[%emt 0:00:01]} 2. d4 {[%emt 0:00:04]} d5 {[%emt 0:00:03]} 3. Nc3 {[%emt 0:00:03]} Bb4 {[%emt 0:00:08]} 4. e5 {[%emt 0:00:04]} c5 {[%emt 0:00:06]} 5. a3 {[%emt 0:00:04]} Bxc3+ {[%emt 0:00:04]} 6. bxc3 {[%emt 0:00:04]} Ne7 {[%emt 0:00:07]} 7. Qg4 {[%emt 0:00:03]} O-O {[%emt 0:00:05]} 8. Bd3 {[%emt 0:00:03]} Nbc6 {[%emt 0:00:11]} 9. Bg5 {[%emt 0:00:12]} Qa5 {[%emt 0:03:32]} 10. Ne2 {[%emt 0:02:03]} Ng6 {[%emt 0:01:19]} 11. O-O {[%emt 0:02:18]} Qa4 {[%emt 0:01:10]} 12. f4 {[%emt 0:03:28]} c4 {[%emt 0:16:51]} 13. Bxg6 {[%emt 0:00:12]} fxg6 {[%emt 0:00:06]} 14. Ra2 {[%emt 0:00:50]} Bd7 {[%emt 0:07:00]} 15. h4 {[%emt 0:02:09]} Rf7 {[%emt 0:08:03]} 16. h5 {[%emt 0:01:15]} gxh5 {[%emt 0:05:47]} 17. Qxh5 {[%emt 0:00:34]} Raf8 {[%emt 0:05:19]} 18. Kh2 {[%emt 0:12:18]} Ne7 {[%emt 0:07:39]} 19. g4 {[%emt 0:03:54]} Be8 {[%emt 0:04:04]} 20. Qh3 {[%emt 0:02:26]} Qd7 {[%emt 0:02:20]} 21. Ng3 {[%emt 0:07:02]} h6 {[%emt 0:02:39]} 22. Bxe7 {[%emt 0:01:04]} Qxe7 {[%emt 0:00:19]} 23. Nh5 {[%emt 0:03:45]} Qd8 {[%emt 0:07:25]} 24. Raa1 {[%emt 0:07:45]} Rc7 {[%emt 0:03:59]} 25. f5 {[%emt 0:12:52]} Bxh5 {[%emt 0:01:11]} 26. Qxh5 {[%emt 0:00:16]} Rcf7 {[%emt 0:01:09]} 27. Rf3 {[%emt 0:04:01]} Qg5 {[%emt 0:07:38]} 28. Qxg5 {[%emt 0:00:18]} hxg5 {[%emt 0:00:01]} 29. Raf1 {[%emt 0:00:13]} g6 {[%emt 0:01:04]} 30. f6 {[%emt 0:01:34]} Rh7+ {[%emt 0:00:26]} 31. Rh3 {[%emt 0:01:16]} Rxh3+ {[%emt 0:01:03]} 32. Kxh3 {[%emt 0:00:01]} Kf7 {[%emt 0:00:08]} 33. Kg3 {[%emt 0:03:15]} Rh8 {[%emt 0:01:03]} 34. Rb1 {[%emt 0:02:50]} b6 {[%emt 0:00:05]} 35. a4 {[%emt 0:00:38]} a5 {[%emt 0:04:00]} 36. Rxb6 {[%emt 0:01:06]} Rh1 {[%emt 0:00:05]} 37. Rb7+ {[%emt 0:00:13]} Kf8 {[%emt 0:00:09]} 38. Re7 {[%emt 0:00:26]} Rc1 {[%emt 0:00:15]} 39. Rxe6 {[%emt 0:00:09]} Rxc2 {[%emt 0:00:06]} 40. Rd6 {[%emt 0:01:25]} Rxc3+ {[%emt 0:01:01]} 41. Kf2 {[%emt 0:00:06]} Rb3 {[%emt 0:00:04]} 42. e6 {[%emt 0:02:42]} Rb8 {[%emt 0:00:02]} 43. Rxd5 {[%emt 0:00:51]} 1-0